fUSD/lending_fUSD_20260602
["ID","MTS","AMOUNT","RATE_DAILY","PERIOD"]
[423742636,1780363842000,-151.0,0.00013699,2]
[423742635,1780363842000,-151.0,0.00013699,2]
[423742643,1780363842000,-151.0,0.00013699,2]
[423742639,1780363842000,-151.0,0.00013699,2]
[423742638,1780363842000,-151.0,0.00013699,2]
[423742642,1780363842000,-151.0,0.00013699,2]
[423742640,1780363842000,-151.0,0.00013699,2]
[423742641,1780363842000,-151.0,0.00013699,2]
[423742645,1780363842000,-151.0,0.00013699,2]
[423742646,1780363842000,-151.0,0.00013699,2]
[423742652,1780363842000,-151.0,0.00013699,2]
[423742653,1780363842000,-151.0,0.00013699,2]
[423742649,1780363842000,-151.0,0.00013699,2]
[423742647,1780363842000,-151.0,0.00013699,2]
[423742648,1780363842000,-151.0,0.00013699,2]
[423742654,1780363842000,-151.0,0.00013699,2]
[423742656,1780363842000,-151.0,0.00013699,2]
[423742651,1780363842000,-151.0,0.00013699,2]
[423742655,1780363842000,-151.0,0.00013699,2]
[423742658,1780363842000,-246.483793,0.00013699,2]
[423742664,1780363842000,-227.092168,0.00013699,2]
[423742657,1780363842000,-151.0,0.00013699,2]
[423742665,1780363842000,-227.092168,0.00013699,2]
[423742666,1780363842000,-227.092168,0.00013699,2]
[423742659,1780363842000,-721.22,0.00013699,2]
[423742661,1780363842000,-227.092168,0.00013699,2]
[423742694,1780363842000,-1613.87294298,0.00013699,2]
[423742667,1780363842000,-227.092168,0.00013699,2]
[423742699,1780363842000,-1613.87294298,0.00013699,2]
[423742735,1780363842000,-1613.87294298,0.00013699,2]
[423742738,1780363842000,-1613.87294298,0.00013699,2]
[423742744,1780363842000,-1613.87294298,0.00013699,2]
[423742750,1780363842000,-1613.87294298,0.00013699,2]
[423742748,1780363842000,-1613.87294298,0.00013699,2]
[423742740,1780363842000,-1613.87294298,0.00013699,2]
[423742746,1780363842000,-1613.87294298,0.00013699,2]
[423742742,1780363842000,-1613.87294298,0.00013699,2]
[423742752,1780363842000,-1613.87294298,0.00013699,2]
[423742754,1780363842000,-1613.87294298,0.00013699,2]
[423742757,1780363842000,-1613.87294298,0.00013699,2]
[423742758,1780363842000,-1613.87294298,0.00013699,2]
[423742759,1780363842000,-1613.87294298,0.00013699,2]
[423742761,1780363842000,-1929.37749394,0.00013699,2]
[423742763,1780363842000,-1929.37749394,0.00013699,2]
[423742762,1780363842000,-1929.37749394,0.00013699,2]
[423742765,1780363842000,-1929.37749394,0.00013699,2]
[423742767,1780363842000,-1929.37749394,0.00013699,2]
[423742760,1780363842000,-1613.87294298,0.00013699,2]
[423742769,1780363842000,-1929.37749394,0.00013699,2]
[423742768,1780363842000,-1929.37749394,0.00013699,2]
[423742766,1780363842000,-1929.37749394,0.00013699,2]
[423742770,1780363842000,-1929.37749394,0.00013699,2]
[423742764,1780363842000,-1929.37749394,0.00013699,2]
[423742771,1780363842000,-1929.37749394,0.00013699,2]
[423742772,1780363842000,-1929.37749394,0.00013699,2]
[423742692,1780363842000,-1613.87294298,0.00013699,2]
[423742733,1780363842000,-1613.87294298,0.00013699,2]
[423742727,1780363842000,-1613.87294298,0.00013699,2]
[423742680,1780363842000,-227.092158,0.00013699,2]
[423742723,1780363842000,-1613.87294298,0.00013699,2]
[423742724,1780363842000,-1613.87294298,0.00013699,2]
[423742702,1780363842000,-1613.87294298,0.00013699,2]
[423742696,1780363842000,-1613.87294298,0.00013699,2]
[423742695,1780363842000,-1613.87294298,0.00013699,2]
[423742698,1780363842000,-1613.87294298,0.00013699,2]
[423742700,1780363842000,-1613.87294298,0.00013699,2]
[423742697,1780363842000,-1613.87294298,0.00013699,2]
[423742705,1780363842000,-1613.87294298,0.00013699,2]
[423742707,1780363842000,-1613.87294298,0.00013699,2]
[423742706,1780363842000,-1613.87294298,0.00013699,2]
[423742710,1780363842000,-1613.87294298,0.00013699,2]
[423742714,1780363842000,-1613.87294298,0.00013699,2]
[423742716,1780363842000,-1613.87294298,0.00013699,2]
[423742708,1780363842000,-1613.87294298,0.00013699,2]
[423742701,1780363842000,-1613.87294298,0.00013699,2]
[423742715,1780363842000,-1613.87294298,0.00013699,2]
[423742725,1780363842000,-1613.87294298,0.00013699,2]
[423742722,1780363842000,-1613.87294298,0.00013699,2]
[423742721,1780363842000,-1613.87294298,0.00013699,2]
[423742713,1780363842000,-1613.87294298,0.00013699,2]
[423742720,1780363842000,-1613.87294298,0.00013699,2]
[423742717,1780363842000,-1613.87294298,0.00013699,2]
[423742719,1780363842000,-1613.87294298,0.00013699,2]
[423742729,1780363842000,-1613.87294298,0.00013699,2]
[423742718,1780363842000,-1613.87294298,0.00013699,2]
[423742711,1780363842000,-1613.87294298,0.00013699,2]
[423742712,1780363842000,-1613.87294298,0.00013699,2]
[423742709,1780363842000,-1613.87294298,0.00013699,2]
[423742731,1780363842000,-1613.87294298,0.00013699,2]
[423742838,1780363843000,-169.86,0.00013923,2]
[423742840,1780363843000,-13278.10261068,0.00013965,2]
[423742837,1780363843000,-150.0,0.00013909,2]
[423742836,1780363843000,-1299.68,0.000139,2]
[423742835,1780363843000,-1226.0,0.00013875,2]
[423742825,1780363843000,-154.0,0.0001385,2]
[423742829,1780363843000,-150.0,0.00013862,2]
[423742830,1780363843000,-150.0,0.00013862,2]
[423742832,1780363843000,-2000.0,0.00013867,2]
[423742828,1780363843000,-200.0,0.00013854,2]
[423742823,1780363843000,-166.66,0.00013836,2]
[423742834,1780363843000,-537.0,0.00013875,2]
[423742833,1780363843000,-1273.0,0.00013875,2]
[423742844,1780363843000,-2000.0,0.00013967,2]
[423742847,1780363843000,-151.45,0.00013972,2]
[423742842,1780363843000,-500.0,0.00013966,2]
[423742845,1780363843000,-2000.0,0.00013967,2]
[423742843,1780363843000,-825.0,0.00013967,2]
[423742848,1780363843000,-151.0,0.00013972,2]
[423742850,1780363843000,-150.0,0.00013987,2]
[423742857,1780363843000,-150.0,0.0001405,2]
[423742846,1780363843000,-2000.0,0.00013967,2]
[423742849,1780363843000,-166.66,0.00013973,2]
[423742852,1780363843000,-250.0,0.00014,2]
[423742853,1780363843000,-2008.0,0.00014,2]
[423742851,1780363843000,-161.0,0.00014,2]
[423742854,1780363843000,-150.0,0.00014003,2]
[423742831,1780363843000,-150.0,0.00013862,2]
[423742839,1780363843000,-150.0,0.00013956,2]
[423742827,1780363843000,-163.0,0.0001385,2]
[423742788,1780363843000,-1929.37749394,0.00013699,2]
[423742817,1780363843000,-2000.0,0.0001383,2]
[423742783,1780363843000,-1929.37749394,0.00013699,2]
[423742784,1780363843000,-1929.37749394,0.00013699,2]
[423742782,1780363843000,-1929.37749394,0.00013699,2]
[423742773,1780363843000,-1929.37749394,0.00013699,2]
[423742774,1780363843000,-1929.37749394,0.00013699,2]
[423742786,1780363843000,-1929.37749394,0.00013699,2]
[423742776,1780363843000,-1929.37749394,0.00013699,2]
[423742785,1780363843000,-1929.37749394,0.00013699,2]
[423742781,1780363843000,-1929.37749394,0.00013699,2]
[423742779,1780363843000,-1929.37749394,0.00013699,2]
[423742780,1780363843000,-1929.37749394,0.00013699,2]
[423742778,1780363843000,-1929.37749394,0.00013699,2]
[423742787,1780363843000,-1929.37749394,0.00013699,2]
[423742789,1780363843000,-1929.37749394,0.00013699,2]
[423742793,1780363843000,-150.0,0.00013737,2]
[423742794,1780363843000,-151.0,0.00013758,2]
[423742856,1780363843000,-150.0,0.0001405,2]
[423742792,1780363843000,-150.0,0.00013722,2]
[423742790,1780363843000,-1929.37749394,0.00013699,2]
[423742796,1780363843000,-1181.8371928,0.00013808,2]
[423742791,1780363843000,-1591.0,0.0001372,2]
[423742797,1780363843000,-438.28739298,0.00013813,2]
[423742795,1780363843000,-150.0,0.00013769,2]
[423742799,1780363843000,-20085.41734174,0.00013813,2]
[423742803,1780363843000,-16263.17845324,0.00013813,2]
[423742807,1780363843000,-150.0,0.00013815,2]
[423742811,1780363843000,-350.0,0.00013829,2]
[423742815,1780363843000,-2000.0,0.0001383,2]
[423742819,1780363843000,-2000.0,0.0001383,2]
[423742821,1780363843000,-503.26614551,0.00013832,2]
[423742855,1780363843000,-350.0,0.00014021,2]
[423742841,1780363843000,-738.0,0.00013966,5]
[423742861,1780363843000,-161.12814006,0.00014113,2]
[423742889,1780363843000,-500.0,0.00014249,2]
[423742888,1780363843000,-500.0,0.00014249,2]
[423742891,1780363843000,-500.0,0.00014249,2]
[423742897,1780363843000,-563.59,0.00014249,2]
[423742907,1780363843000,-1254.0,0.00014268,2]
[423742908,1780363843000,-706.0,0.00014268,2]
[423742896,1780363843000,-502.02558638,0.00014249,2]
[423742910,1780363843000,-1192.0,0.00014268,2]
[423742899,1780363843000,-1789.41,0.00014249,2]
[423742902,1780363843000,-993.08,0.00014249,2]
[423742898,1780363843000,-500.0,0.00014249,2]
[423742912,1780363843000,-213.0,0.00014268,2]
[423742900,1780363843000,-822.85,0.00014249,2]
[423742903,1780363843000,-282016.311122,0.0001425,2]
[423742892,1780363843000,-500.0,0.00014249,2]
[423742905,1780363843000,-151.0,0.0001425,2]
[423742915,1780363843000,-1651.0,0.00014268,2]
[423742914,1780363843000,-487.0,0.00014268,2]
[423742921,1780363843000,-993.08,0.00014284,2]
[423742916,1780363843000,-2059.0,0.00014268,2]
[423742922,1780363843000,-91154.5097206,0.00014285,2]
[423742923,1780363843000,-42468.2613167,0.00014285,2]
[423742924,1780363843000,-4345.0306886,0.00014285,2]
[423742926,1780363843000,-18864.9184388,0.00014285,2]
[423742918,1780363843000,-150.0,0.00014284,2]
[423742917,1780363843000,-350.0,0.00014283,2]
[423742925,1780363843000,-6121.7833567,0.00014285,2]
[423742919,1780363843000,-1789.41,0.00014284,2]
[423742858,1780363843000,-150.0,0.00014096,2]
[423742920,1780363843000,-500.0,0.00014284,2]
[423742904,1780363843000,-151.0,0.0001425,2]
[423742890,1780363843000,-500.0,0.00014249,2]
[423742901,1780363843000,-500.0,0.00014249,2]
[423742893,1780363843000,-268.09621544,0.00014249,2]
[423742859,1780363843000,-166.66,0.0001411,2]
[423742887,1780363843000,-500.0,0.00014249,2]
[423742864,1780363843000,-151.0,0.00014141,2]
[423742868,1780363843000,-16263.17845324,0.00014176,2]
[423742870,1780363843000,-2320.72006052,0.000142,2]
[423742866,1780363843000,-151.0,0.00014158,2]
[423742867,1780363843000,-20085.41734174,0.00014176,2]
[423742863,1780363843000,-151.0,0.00014141,2]
[423742862,1780363843000,-163.0,0.0001413,2]
[423742865,1780363843000,-150.0,0.00014143,2]
[423742869,1780363843000,-150.0,0.0001419,2]
[423742872,1780363843000,-2175.10937727,0.000142,2]
[423742882,1780363843000,-151.0,0.00014247,2]
[423742881,1780363843000,-151.0,0.00014247,2]
[423742876,1780363843000,-150.0,0.00014237,2]
[423742860,1780363843000,-150.0,0.00014112,2]
[423742894,1780363843000,-645.18,0.00014249,2]
[423742871,1780363843000,-3044.76371182,0.000142,2]
[423742874,1780363843000,-150.0,0.00014237,2]
[423742875,1780363843000,-150.0,0.00014237,2]
[423742873,1780363843000,-151.0,0.0001423,2]
[423742880,1780363843000,-151.0,0.00014247,2]
[423742878,1780363843000,-362.3540378,0.0001424,2]
[423742877,1780363843000,-3292.0,0.00014239,2]
[423742879,1780363843000,-166.66,0.00014247,2]
[423742884,1780363843000,-246.78736105,0.00014249,2]
[423742895,1780363843000,-500.0,0.00014249,2]
[423742883,1780363843000,-154.800204,0.00014247,2]
[423742885,1780363843000,-338.87344356,0.00014249,2]
[423742886,1780363843000,-500.0,0.00014249,2]
[423742974,1780363844000,-384.0,0.00014559,2]
[423742992,1780363844000,-384.0,0.00014648,2]
[423742973,1780363844000,-384.0,0.0001455,2]
[423742984,1780363844000,-384.0,0.00014597,2]
[423742975,1780363844000,-384.0,0.00014559,2]
[423742971,1780363844000,-16263.17845324,0.00014538,2]
[423742966,1780363844000,-150.0,0.00014518,2]
[423742962,1780363844000,-150.0,0.00014487,2]
[423742964,1780363844000,-384.0,0.00014504,2]
[423742965,1780363844000,-384.0,0.00014516,2]
[423742961,1780363844000,-384.0,0.00014485,2]
[423742982,1780363844000,-384.0,0.00014584,2]
[423742963,1780363844000,-150.0,0.00014487,2]
[423742960,1780363844000,-384.0,0.00014473,2]
[423742972,1780363844000,-500.0,0.00014538,3]
[423742976,1780363844000,-1241.8,0.00014564,2]
[423742978,1780363844000,-200.79945,0.00014564,2]
[423742983,1780363844000,-384.0,0.00014592,2]
[423742981,1780363844000,-384.0,0.00014576,2]
[423742979,1780363844000,-150.0,0.00014565,2]
[423742980,1780363844000,-150.0,0.0001457,2]
[423742986,1780363844000,-150.0,0.00014612,2]
[423742987,1780363844000,-150.0,0.00014612,2]
[423742985,1780363844000,-150.0,0.00014612,2]
[423742996,1780363844000,-384.0,0.00014663,2]
[423742988,1780363844000,-384.0,0.00014616,2]
[423742989,1780363844000,-384.0,0.00014638,2]
[423742990,1780363844000,-384.0,0.00014644,2]
[423742959,1780363844000,-150.0,0.00014471,2]
[423742977,1780363844000,-151.0,0.00014564,2]
[423742957,1780363844000,-1195250.13052206,0.00014444,2]
[423742929,1780363844000,-500.0,0.00014318,2]
[423742969,1780363844000,-20085.41734174,0.00014538,2]
[423742991,1780363844000,-384.0,0.00014648,2]
[423742941,1780363844000,-822.85,0.00014318,2]
[423742928,1780363844000,-7904.9861961,0.00014287,2]
[423742940,1780363844000,-230.64,0.00014318,2]
[423742932,1780363844000,-500.0,0.00014318,2]
[423742931,1780363844000,-500.0,0.00014318,2]
[423742930,1780363844000,-500.0,0.00014318,2]
[423742943,1780363844000,-150.0,0.0001432,2]
[423742934,1780363844000,-295.39381884,0.00014318,2]
[423742935,1780363844000,-500.0,0.00014318,2]
[423742937,1780363844000,-500.0,0.00014318,2]
[423742933,1780363844000,-500.0,0.00014318,2]
[423742936,1780363844000,-645.18,0.00014318,2]
[423742938,1780363844000,-563.59,0.00014318,2]
[423742967,1780363844000,-384.0,0.00014519,2]
[423742954,1780363844000,-393.34894045,0.00014406,2]
[423742953,1780363844000,-151.0,0.00014405,2]
[423742956,1780363844000,-150.0,0.00014424,2]
[423742946,1780363844000,-438.28739298,0.00014357,2]
[423742949,1780363844000,-166.66,0.00014384,2]
[423742947,1780363844000,-150.0,0.00014362,2]
[423742944,1780363844000,-350.0,0.00014327,2]
[423742950,1780363844000,-1789.41,0.00014399,2]
[423742951,1780363844000,-993.08,0.00014399,2]
[423742952,1780363844000,-150.0,0.00014404,2]
[423742945,1780363844000,-150.0,0.00014331,2]
[423742927,1780363844000,-94465.7452281,0.00014285,2]
[423742948,1780363844000,-150.0,0.00014377,2]
[423742958,1780363844000,-384.0,0.00014463,2]
[423742968,1780363844000,-255.0,0.00014527,2]
[423742955,1780363844000,-150.0,0.00014424,2]
[423742993,1780363844000,-384.0,0.00014651,2]
[423743034,1780363844000,-151.0,0.00014802,2]
[423742994,1780363844000,-150.0,0.00014653,2]
[423743036,1780363844000,-151.0,0.00014805,2]
[423743030,1780363844000,-151.02,0.00014794,2]
[423743032,1780363844000,-150.0,0.00014799,2]
[423743031,1780363844000,-150.0,0.00014799,2]
[423743033,1780363844000,-151.44,0.000148,2]
[423743038,1780363844000,-151.0,0.00014805,2]
[423743050,1780363844000,-150.0,0.00014861,2]
[423743049,1780363844000,-150.0,0.00014846,2]
[423743048,1780363844000,-1763.8408359,0.00014833,2]
[423743042,1780363844000,-9475.9499488,0.00014833,2]
[423743039,1780363844000,-151.0,0.00014817,2]
[423743037,1780363844000,-276.2,0.00014805,2]
[423743040,1780363844000,-150.0,0.0001482,2]
[423743041,1780363844000,-20339.3203522,0.00014833,2]
[423743047,1780363844000,-163.9138904,0.00014833,2]
[423743046,1780363844000,-21078.1568613,0.00014833,2]
[423743045,1780363844000,-4209.3322724,0.00014833,2]
[423743043,1780363844000,-969.5073934,0.00014833,2]
[423743051,1780363844000,-350.0,0.00014888,2]
[423743052,1780363844000,-150.0,0.00014893,2]
[423743054,1780363844000,-500.0,0.00014899,2]
[423743053,1780363844000,-151.0,0.00014897,2]
[423743055,1780363844000,-500.0,0.00014899,2]
[423743058,1780363844000,-500.0,0.00014899,2]
[423743059,1780363844000,-500.0,0.00014899,2]
[423743060,1780363844000,-645.18,0.00014899,2]
[423743057,1780363844000,-500.0,0.00014899,2]
[423743056,1780363844000,-500.0,0.00014899,2]
[423742995,1780363844000,-150.0,0.00014658,2]
[423743029,1780363844000,-151.0,0.00014794,2]
[423743027,1780363844000,-151.0,0.00014794,2]
[423743044,1780363844000,-1365.9545007,0.00014833,2]
[423743025,1780363844000,-151.13,0.00014794,2]
[423743024,1780363844000,-151.0,0.0001479,2]
[423742997,1780363844000,-384.0,0.00014675,2]
[423743000,1780363844000,-384.0,0.00014689,2]
[423742999,1780363844000,-359.8669165,0.00014688,2]
[423742998,1780363844000,-1591.0,0.0001468,2]
[423743001,1780363844000,-384.0,0.0001469,2]
[423743006,1780363844000,-513.4,0.000147,2]
[423743003,1780363844000,-384.0,0.00014693,2]
[423743002,1780363844000,-384.0,0.00014692,2]
[423743007,1780363844000,-384.0,0.000147,2]
[423743008,1780363844000,-150.0,0.00014705,2]
[423743009,1780363844000,-384.0,0.00014706,2]
[423743004,1780363844000,-500.0,0.00014693,2]
[423743011,1780363844000,-384.0,0.00014709,2]
[423743021,1780363844000,-150.0,0.00014752,2]
[423743005,1780363844000,-384.0,0.00014694,2]
[423743022,1780363844000,-4944.8696,0.00014757,2]
[423743010,1780363844000,-283.7805155,0.00014708,2]
[423743028,1780363844000,-151.0,0.00014794,2]
[423743035,1780363844000,-151.0,0.00014802,2]
[423743016,1780363844000,-384.0,0.00014719,2]
[423743017,1780363844000,-700.0,0.00014726,2]
[423743015,1780363844000,-384.0,0.00014716,2]
[423743020,1780363844000,-150.0,0.00014737,2]
[423743019,1780363844000,-150.0,0.00014737,2]
[423743013,1780363844000,-384.0,0.00014712,2]
[423743012,1780363844000,-350.0,0.00014711,2]
[423743023,1780363844000,-151.0,0.0001479,2]
[423743014,1780363844000,-384.0,0.00014714,2]
[423743018,1780363844000,-384.0,0.00014734,2]
[423743026,1780363844000,-151.0,0.00014794,2]
[423743078,1780363845000,-151.0,0.00014964,2]
[423743067,1780363845000,-14981.95620103,0.000149,3]
[423743072,1780363845000,-25000.0,0.000149,3]
[423743071,1780363845000,-16263.17845324,0.000149,2]
[423743074,1780363845000,-1181.8371928,0.000149,2]
[423743077,1780363845000,-1168.4876401,0.0001496,2]
[423743068,1780363845000,-151.0,0.000149,2]
[423743066,1780363845000,-23766.66010192,0.000149,2]
[423743064,1780363845000,-822.85,0.00014899,2]
[423743065,1780363845000,-993.08,0.00014899,2]
[423743075,1780363845000,-150.0,0.00014903,2]
[423743069,1780363845000,-438.28739298,0.000149,2]
[423743073,1780363845000,-576.89462537,0.000149,2]
[423743061,1780363845000,-500.0,0.00014899,2]
[423743062,1780363845000,-563.59,0.00014899,2]
[423743063,1780363845000,-1789.41,0.00014899,2]
[423743080,1780363845000,-2000.0,0.00014985,2]
[423743076,1780363845000,-150.0,0.00014939,2]
[423743081,1780363845000,-1194.98,0.00014985,2]
[423743070,1780363845000,-20085.41734174,0.000149,2]
[423743082,1780363845000,-150.0,0.00014986,2]
[423743083,1780363845000,-150.0,0.00014986,2]
[423743099,1780363845000,-364.24972887,0.00014998,3]
[423743100,1780363845000,-1432.72139523,0.00014998,3]
[423743095,1780363845000,-151.0,0.00014997,2]
[423743096,1780363845000,-170.95106721,0.00014997,2]
[423743097,1780363845000,-152.05427694,0.00014997,2]
[423743094,1780363845000,-151.0,0.00014997,2]
[423743098,1780363845000,-9957.76326216,0.00014998,3]
[423743093,1780363845000,-151.0,0.00014997,2]
[423743091,1780363845000,-151.0,0.00014996,2]
[423743079,1780363845000,-825.0,0.00014967,2]
[423743088,1780363845000,-278.69604194,0.00014986,2]
[423743085,1780363845000,-255.21734099,0.00014986,2]
[423743090,1780363845000,-362.3540378,0.0001499,2]
[423743089,1780363845000,-273.83936132,0.00014986,2]
[423743086,1780363845000,-150.0,0.00014986,2]
[423743087,1780363845000,-296.54389221,0.00014986,2]
[423743092,1780363845000,-151.0,0.00014997,2]
[423743084,1780363845000,-223.58852099,0.00014986,2]
[423743151,1780363846000,-500.0,0.00014999,2]
[423743150,1780363846000,-500.0,0.00014999,2]
[423743149,1780363846000,-500.0,0.00014999,2]
[423743148,1780363846000,-500.0,0.00014999,2]
[423743145,1780363846000,-500.0,0.00014999,2]
[423743146,1780363846000,-603.20182088,0.00014999,2]
[423743144,1780363846000,-500.0,0.00014999,2]
[423743141,1780363846000,-500.0,0.00014999,2]
[423743143,1780363846000,-500.0,0.00014999,2]
[423743142,1780363846000,-500.0,0.00014999,2]
[423743153,1780363846000,-500.0,0.00014999,2]
[423743140,1780363846000,-500.0,0.00014999,2]
[423743139,1780363846000,-157.88923758,0.00014999,2]
[423743138,1780363846000,-500.0,0.00014999,2]
[423743137,1780363846000,-500.0,0.00014999,2]
[423743135,1780363846000,-390.04,0.00014999,2]
[423743134,1780363846000,-500.0,0.00014999,2]
[423743147,1780363846000,-500.0,0.00014999,2]
[423743152,1780363846000,-500.0,0.00014999,2]
[423743165,1780363846000,-645.18,0.00014999,2]
[423743155,1780363846000,-500.0,0.00014999,2]
[423743136,1780363846000,-500.0,0.00014999,2]
[423743177,1780363846000,-645.18,0.00014999,2]
[423743175,1780363846000,-645.18,0.00014999,2]
[423743174,1780363846000,-645.18,0.00014999,2]
[423743176,1780363846000,-645.18,0.00014999,2]
[423743172,1780363846000,-645.18,0.00014999,2]
[423743173,1780363846000,-645.18,0.00014999,2]
[423743170,1780363846000,-645.18,0.00014999,2]
[423743154,1780363846000,-500.0,0.00014999,2]
[423743171,1780363846000,-645.18,0.00014999,2]
[423743166,1780363846000,-645.18,0.00014999,2]
[423743169,1780363846000,-645.18,0.00014999,2]
[423743163,1780363846000,-645.18,0.00014999,2]
[423743159,1780363846000,-645.18,0.00014999,2]
[423743162,1780363846000,-645.18,0.00014999,2]
[423743157,1780363846000,-250.22,0.00014999,2]
[423743158,1780363846000,-645.18,0.00014999,2]
[423743156,1780363846000,-500.0,0.00014999,2]
[423743168,1780363846000,-645.18,0.00014999,2]
[423743167,1780363846000,-645.18,0.00014999,2]
[423743133,1780363846000,-587.56764343,0.00014999,2]
[423743132,1780363846000,-500.0,0.00014999,2]
[423743131,1780363846000,-500.0,0.00014999,2]
[423743110,1780363846000,-547.72007045,0.0001164,2]
[423743114,1780363846000,-3003.94284036,0.00014998,3]
[423743115,1780363846000,-8897.23485849,0.00014998,3]
[423743117,1780363846000,-1519.53849014,0.00014998,3]
[423743111,1780363846000,-1227.88523118,0.00012571,2]
[423743113,1780363846000,-8363.53700037,0.00014998,3]
[423743116,1780363846000,-30000.0,0.00014998,2]
[423743118,1780363846000,-1424.39835235,0.00014998,3]
[423743120,1780363846000,-500.0,0.00014999,2]
[423743112,1780363846000,-387.764898,0.0001425,2]
[423743124,1780363846000,-500.0,0.00014999,2]
[423743130,1780363846000,-500.0,0.00014999,2]
[423743125,1780363846000,-500.0,0.00014999,2]
[423743129,1780363846000,-500.0,0.00014999,2]
[423743128,1780363846000,-500.0,0.00014999,2]
[423743127,1780363846000,-500.0,0.00014999,2]
[423743123,1780363846000,-500.0,0.00014999,2]
[423743119,1780363846000,-500.0,0.00014999,2]
[423743121,1780363846000,-500.0,0.00014999,2]
[423743122,1780363846000,-500.0,0.00014999,2]
[423743126,1780363846000,-500.0,0.00014999,2]
[423743196,1780363847000,-563.59,0.00014999,2]
[423743202,1780363847000,-563.59,0.00014999,2]
[423743205,1780363847000,-563.59,0.00014999,2]
[423743197,1780363847000,-563.59,0.00014999,2]
[423743194,1780363847000,-563.59,0.00014999,2]
[423743200,1780363847000,-563.59,0.00014999,2]
[423743203,1780363847000,-563.59,0.00014999,2]
[423743215,1780363847000,-1789.41,0.00014999,2]
[423743207,1780363847000,-563.59,0.00014999,2]
[423743211,1780363847000,-1789.41,0.00014999,2]
[423743216,1780363847000,-1789.41,0.00014999,2]
[423743208,1780363847000,-563.59,0.00014999,2]
[423743209,1780363847000,-563.79078789,0.00014999,2]
[423743210,1780363847000,-1789.41,0.00014999,2]
[423743199,1780363847000,-563.59,0.00014999,2]
[423743206,1780363847000,-563.59,0.00014999,2]
[423743201,1780363847000,-563.59,0.00014999,2]
[423743186,1780363847000,-500.0,0.00014999,2]
[423743198,1780363847000,-563.59,0.00014999,2]
[423743178,1780363847000,-645.18,0.00014999,2]
[423743179,1780363847000,-645.18,0.00014999,2]
[423743181,1780363847000,-500.0,0.00014999,2]
[423743182,1780363847000,-500.0,0.00014999,2]
[423743185,1780363847000,-500.0,0.00014999,2]
[423743184,1780363847000,-500.0,0.00014999,2]
[423743212,1780363847000,-1789.41,0.00014999,2]
[423743195,1780363847000,-563.59,0.00014999,2]
[423743183,1780363847000,-500.0,0.00014999,2]
[423743188,1780363847000,-500.0,0.00014999,2]
[423743190,1780363847000,-563.59,0.00014999,2]
[423743187,1780363847000,-500.0,0.00014999,2]
[423743192,1780363847000,-563.59,0.00014999,2]
[423743191,1780363847000,-563.59,0.00014999,2]
[423743193,1780363847000,-563.59,0.00014999,2]
[423743204,1780363847000,-563.59,0.00014999,2]
[423743189,1780363847000,-377.47517352,0.00014999,2]
[423743213,1780363847000,-1789.41,0.00014999,2]
[423743180,1780363847000,-645.2,0.00014999,2]
[423743218,1780363847000,-1789.41,0.00014999,2]
[423743238,1780363847000,-822.85,0.00014999,2]
[423743237,1780363847000,-822.85,0.00014999,2]
[423743240,1780363847000,-993.08,0.00014999,2]
[423743241,1780363847000,-993.08,0.00014999,2]
[423743243,1780363847000,-993.08,0.00014999,2]
[423743242,1780363847000,-993.08,0.00014999,2]
[423743245,1780363847000,-993.08,0.00014999,2]